Cogmind - Beta 16 @@@ ROGUE MODE // 2025.11.12 @ 15:10:46 Player: GFYguy Result: Destroyed by D-53 Grenadier with Mini Grenade Launcher Performance ------------- Evolutions (0) 0 Regions Visited (4) 800 Robots Destroyed (3) 15 Value Destroyed (80) 80 Prototype IDs (23) 460 Alien Tech Used (0) 0 Bonus (300) 300 TOTAL SCORE: 1655 Bonus ------- Aligned with FarCom 300 Cogmind --------- Core Integrity 0/250 Matter 260/300 Energy 68/100 System Corruption 2% Temperature Cool (0) Movement Core (50) Location -9/Mines Parts ------- > --- POWER (1) -------- (None) > --- PROPULSION (2) --- (None) > --- UTILITY (2) ------ (None) > --- WEAPON (2) ------- (None) > --- INVENTORY (5) ---- Ion Engine Light Nuclear Core Improved Heat Sink Cloak of Protection Mining Claw Peak State ------------ > --- POWER ------------ Ion Engine > --- PROPULSION ------- Aluminum Leg Aluminum Leg > --- UTILITY ---------- Small Storage Unit Weight Redist. System > --- WEAPON ----------- Assault Rifle Grenade Launcher > --- INVENTORY -------- Ion Engine Light Nuclear Core Improved Heat Sink Small Storage Unit Light Assault Rifle Light Assault Rifle Grenade Launcher Mining Claw [Rating: 9] Favorites ----------- Power Ion Engine Engine Ion Engine Propulsion Aluminum Leg Leg Aluminum Leg Utility Small Storage Unit Device Weight Redist. System Storage Small Storage Unit Weapon Assault Rifle Ballistic Gun Assault Rifle Launcher Grenade Launcher Slashing Weapon Mining Claw Build | -11 -10 -10 -10 -9 ------- Run | Yrd Mat Min Exi Min Slots Evolved . | . . . . . Power . | . . . . . Propulsion . | . . . . . Utility . | . . . . . Weapon . | . . . . . Parts Attached 10 | 4 3 1 . 2 Power 1 | 1 . . . . Engine 1 | 1 . . . . Core . | . . . . . Reactor . | . . . . . Propulsion 2 | 2 . . . . Treads . | . . . . . Leg 2 | 2 . . . . Wheel . | . . . . . Hover . | . . . . . Flight . | . . . . . Utility 2 | 1 . 1 . . Device 1 | . . 1 . . Storage 1 | 1 . . . . Processor . | . . . . . Hackware . | . . . . . Protection . | . . . . . Artifact . | . . . . . Weapon 5 | . 3 . . 2 Energy Gun . | . . . . . Energy Cannon . | . . . . . Ballistic Gun 2 | . 2 . . . Ballistic Cannon . | . . . . . Launcher 2 | . 1 . . 1 Special Weapon . | . . . . . Impact Weapon . | . . . . . Slashing Weapon 1 | . . . . 1 Piercing Weapon . | . . . . . Special Melee Weapon . | . . . . . Unidentified Prototypes . | . . . . . Parts Lost 7 | . . . . 7 Power 1 | . . . . 1 Propulsion 2 | . . . . 2 Utility 1 | . . . . 1 Weapon 3 | . . . . 3 Highest Loss Streak 7 | . . . . 7 To Critical Strikes . | . . . . . Average Backups 6 | 1 3 7 7 6 Power 1 | . . 1 2 2 Propulsion . | . . . . . Utility 1 | . . 2 1 2 Weapon 3 | 1 2 4 4 2 Tool/Special . | . . . . . Unused Backups 8 | . . . 3 5 Power 2 | . . . . 2 Propulsion . | . . . . . Utility 5 | . . . 3 2 Weapon 1 | . . . . 1 Tool/Special . | . . . . . Average Slot Usage (%) 93 | . 84 97 100 66 Engine 13 | . 14 14 14 7 Leg 26 | . 28 28 28 14 Device 10 | . . 11 14 14 Storage 14 | . 14 14 14 14 Ballistic Gun 14 | . 18 14 14 7 Launcher 12 | . 8 14 14 7 Peak Build Rating 9 | 4 6 9 9 9 Average Rating 7 | 3 5 8 9 6 On Entrance 5 | . 4 6 9 9 Avg Prop Armor Cover (%) . | . . . . . Naked Turns 5 | . . . . 5 Heaviest Build 15 | 10 15 15 15 15 Greatest Support 26 | 20 20 26 26 26 Greatest Overweight (x) . | . . . . . Average Overweight (x) . | . . . . . Largest Inventory Capacity 8 | 8 8 8 8 8 Average Capacity 7 | 7 8 8 8 7 Most Carried 8 | 4 7 8 8 8 Average Carried 6 | 2 3 7 7 7 Final Capacity 8 | 8 8 8 8 5 Final Carried 8 | 3 7 8 8 5 Class Distribution -------------------- 100% | Mutant Dominant Class ---------------- Mutant | -10/Materials Mutant | -10/Mines Mutant | -10/Exiles Mutant | -9/Mines Resources | -11 -10 -10 -10 -9 ----------- Run | Yrd Mat Min Exi Min Matter Collected 371 | 234 127 10 . . Remotely . | . . . . . Salvage Created 113 | . 99 . . 14 Parts 7 | . 7 . . . Haulers Intercepted 1 | . 1 . . . Recyclers Shooed . | . . . . . Parts Field Recycled . | . . . . . Retrieved Matter . | . . . . . Parts Self-Destructed . | . . . . . Prevented . | . . . . . Parts Restored . | . . . . . Kills | -11 -10 -10 -10 -9 ------- Run | Yrd Mat Min Exi Min Combat Hostiles Destroyed 8 | . 2 . . 6 Guns 1 | . 1 . . . AOE 7 | . 1 . . 6 Classes Destroyed 3 | . 2 . . 1 Hauler 1 | . 1 . . . Grunt 2 | . 2 . . . Assembled 6 | . . . . 6 Best Kill Streak 6 | . 2 . . 6 Combat Bots Only 6 | . 1 . . 6 Max Kills in Single Turn 3 | . 1 . . 3 Gunslinging . | . . . . . Exploded 3 | . 1 . . 3 Melee . | . . . . . Uniques/NPCs Destroyed . | . . . . . Combat | -11 -10 -10 -10 -9 -------- Run | Yrd Mat Min Exi Min Hostile Shots Fired 65 | . 6 1 . 58 Missed 20 | . 4 1 . 15 Hits 45 | . 2 . . 43 Melee 6 | . . . . 6 Projectile 39 | . 2 . . 37 AOE 5 | . . . . 5 Damage Taken 792 | . 38 . . 754 Core 254 | . . . . 254 Absorbed by Shields . | . . . . . Core Remaining (%) 100 | 100 . . . . Volleys Fired 12 | . 7 . . 5 Largest 2 | . 2 . . 2 Hottest 50 | . 50 . . 50 Shots Fired 23 | . 14 . . 9 Gun 12 | . 7 . . 5 Cannon . | . . . . . Launcher 11 | . 7 . . 4 Special . | . . . . . Kinetic 12 | . 7 . . 5 Thermal . | . . . . . Explosive 11 | . 7 . . 4 Electromagnetic . | . . . . . Robot Hit Streak 2 | . 2 . . 2 Robot Miss Streak 3 | . 1 . . 3 Penetration Max . | . . . . . Secondary Targets . | . . . . . Shots Hit Robots 6 | . 2 . . 4 Core Hits 27 | . 7 . . 20 Critical Kills . | . . . . . Critical Parts Destroyed . | . . . . . Critical Strikes . | . . . . . Melee Attacks 2 | . . . . 2 Impact . | . . . . . Slashing 2 | . . . . 2 Piercing . | . . . . . Sneak Attacks . | . . . . . Combat Hostiles . | . . . . . Follow-up Attacks . | . . . . . Damage Inflicted 814 | . 176 . . 638 Guns 35 | . 10 . . 25 Cannons . | . . . . . Explosions 779 | . 166 . . 613 Melee . | . . . . . Ramming . | . . . . . Kinetic 35 | . 10 . . 25 Thermal . | . . . . . Explosive 779 | . 166 . . 613 Electromagnetic . | . . . . . Impact . | . . . . . Slashing . | . . . . . Piercing . | . . . . . Highest Corruption 2 | . . . . 2 Average Corruption 2 | . . . . 2 Corruption Purged . | . . . . . Corruption Blocked . | . . . . . Overload Shots . | . . . . . Overflow Damage 7 | . . . . 7 Projectiles . | . . . . . Explosions 7 | . . . . 7 Melee . | . . . . . Knockbacks . | . . . . . Impact . | . . . . . Kinetic . | . . . . . Secondary . | . . . . . Self-Inflicted Damage 17 | . 17 . . . Shots 1 | . 1 . . . Rammed . | . . . . . Targets Rammed . | . . . . . Kicked . | . . . . . Crushed . | . . . . . Highest Temperature 16 | . 2 . . 16 Average Temperature 8 | . 2 . . 14 Received Heat Transfer 32 | . 12 . . 20 Siege Activations . | . . . . . Martial Activations . | . . . . . Shielding Activations . | . . . . . Robots Disrupted . | . . . . . Combat Hostiles . | . . . . . Robots Corrupted . | . . . . . Combat Hostiles . | . . . . . Parts Fried . | . . . . . Impact Corruptions . | . . . . . Robots Melted . | . . . . . Combat Hostiles . | . . . . . Parts Melted . | . . . . . Heat Transferred . | . . . . . Parts Sabotaged . | . . . . . Parts Stolen . | . . . . . Parts Stripped . | . . . . . Power Chain Reactions . | . . . . . Alert | -11 -10 -10 -10 -9 ------- Run | Yrd Mat Min Exi Min Maximum Alert Level . | . . . . . Low Security (%) 100 | 100 100 100 . 100 Level 1 . | . . . . . Level 2 . | . . . . . Level 3 . | . . . . . Level 4 . | . . . . . Level 5 . | . . . . . High Security . | . . . . . Max Security . | . . . . . Peak Influence 78 | . 78 22 . 12 Initial 22 | . . 22 . . Average 15 | . 31 6 . 1 Influence Increases 115 | . 98 . . 17 Destroy 0b10 Robot/C 40 | . 40 . . . Destroy 0b10 Robot/NC 5 | . 5 . . . Destroy Leader 12 | . 12 . . . Disable Machine 15 | . 15 . . . Destroy Structure 43 | . 26 . . 17 Influence Decreases 115 | . 40 58 . 17 Entered New Map 36 | . . 36 . . Time Decay 72 | . 40 22 . 10 Lost Part 7 | . . . . 7 Squads Dispatched 3 | . 3 . . . Investigation 1 | . 1 . . . Extermination . | . . . . . Reinforcement 2 | . 2 . . . Assault . | . . . . . Garrison . | . . . . . Intercept . | . . . . . Searches Triggered . | . . . . . Construction Impeded . | . . . . . Haulers Reinforced . | . . . . . Active Scanning Responses . | . . . . . Cargo Convoy Interrupts . | . . . . . Stealth | -11 -10 -10 -10 -9 --------- Run | Yrd Mat Min Exi Min Distress Signals 2 | . 2 . . . Communications Jammed . | . . . . . Distress Signals . | . . . . . Times Spotted 27 | . 4 2 . 21 Peak Tracking Total 17 | . 1 1 . 17 Tactical Retreats . | . . . . . Traps | -11 -10 -10 -10 -9 ------- Run | Yrd Mat Min Exi Min Traps Triggered 1 | . 1 . . . Indirectly . | . . . . . Trap Hack Attempts . | . . . . . Triggered . | . . . . . Disarmed . | . . . . . Reprogrammed . | . . . . . Reused . | . . . . . Traps Extracted . | . . . . . Installed . | . . . . . Triggered . | . . . . . Machines | -11 -10 -10 -10 -9 ---------- Run | Yrd Mat Min Exi Min Machines Disabled 1 | . 1 . . . Max in Single Turn 1 | . 1 . . . Machines Repaired . | . . . . . Machines Dismantled . | . . . . . Machines Sabotaged . | . . . . . Overloaded Fab Kills . | . . . . . Hacking | -11 -10 -10 -10 -9 --------- Run | Yrd Mat Min Exi Min Machines Accessed 2 | . . . 2 . Terminals . | . . . . . Fabricators . | . . . . . Repair Stations . | . . . . . Recycling Units . | . . . . . Scanalyzers . | . . . . . Garrison Access . | . . . . . Total Hacks 5 | . . . 5 . Successful 5 | . . . 5 . Failed . | . . . . . Catastrophic . | . . . . . Database Lockouts . | . . . . . Manual 1 | . . . 1 . Terminals . | . . . . . Fabricators . | . . . . . Repair Stations . | . . . . . Recycling Units . | . . . . . Scanalyzers . | . . . . . Garrison Access . | . . . . . Terminal Hacks 5 | . . . 5 . Record 4 | . . . 4 . Proto ID Catalog 1 | . . . 1 . Fabricator Hacks . | . . . . . Repair Station Hacks . | . . . . . Recycling Unit Hacks . | . . . . . Scanalyzer . | . . . . . Garrison Access Hacks . | . . . . . Unauthorized Hacks . | . . . . . Terminals . | . . . . . Fabricators . | . . . . . Repair Stations . | . . . . . Recycling Units . | . . . . . Scanalyzers . | . . . . . Garrison Access . | . . . . . Data Cores Recovered . | . . . . . Used . | . . . . . Hacking Detections . | . . . . . Full Trace Events . | . . . . . Feedback Events . | . . . . . Feedback Blocked . | . . . . . Robot Schematics Acquired . | . . . . . Robots Built . | . . . . . Authchips . | . . . . . Time . | . . . . . Total Robot Build Rating . | . . . . . Part Schematics Acquired . | . . . . . Parts Built . | . . . . . Authchips . | . . . . . Time . | . . . . . Total Part Build Rating . | . . . . . Part Studies Acquired . | . . . . . Parts Repaired . | . . . . . Time . | . . . . . Parts Recycled . | . . . . . Recycled Matter . | . . . . . Retrieved Matter . | . . . . . Retrieved Components . | . . . . . Parts Scanalyzed . | . . . . . Part Schematics Acquired . | . . . . . Parts Damaged . | . . . . . Bothacking | -11 -10 -10 -10 -9 ------------ Run | Yrd Mat Min Exi Min Used RIF Installer . | . . . . . Robots Hacked . | . . . . . Non-combat . | . . . . . Combat . | . . . . . Robot Hacks Applied . | . . . . . Relay Couplers Released . | . . . . . Fabnet Peak Effective % . | . . . . . Robots Rewired . | . . . . . Allies Hacked . | . . . . . Hacks Repelled . | . . . . . Allies | -11 -10 -10 -10 -9 -------- Run | Yrd Mat Min Exi Min Total Allies . | . . . . . Largest Group . | . . . . . Highest-Rated Group . | . . . . . Highest-Rated Ally . | . . . . . Total Orders . | . . . . . Ally Attacks . | . . . . . Total Damage . | . . . . . Kills . | . . . . . Allies Corrupted . | . . . . . Allies Melted . | . . . . . Intel | -11 -10 -10 -10 -9 ------- Run | Yrd Mat Min Exi Min Active Infowar (turns) . | . . . . . Robot Analysis Total . | . . . . . Derelict Logs Recovered . | . . . . . Drone Launches . | . . . . . Drone Recoveries . | . . . . . Exploration | -11 -10 -10 -10 -9 ------------- Run | Yrd Mat Min Exi Min Turns Passed 758 | 58 152 107 385 56 Spaces Moved 601 | 43 102 87 318 51 Core 47 | 5 . . . 42 Treads . | . . . . . Legs 554 | 38 102 87 318 9 Wheels . | . . . . . Hover . | . . . . . Flight . | . . . . . Fastest Speed 50 | 50 120 120 120 50 Average Speed 114 | 111 120 120 120 62 Slowest Speed 120 | 120 120 120 120 120 Overloaded Moves . | . . . . . Propulsion Burnouts . | . . . . . Robots Hopped . | . . . . . Potential Cave-ins . | . . . . . Cave-ins Triggered . | . . . . . Exploration Rate (%) 33 | 3 33 32 75 25 Regions Visited 4 Branch Regions 3 Pre-discovered Areas 1 | . . . 1 . Known Exits Taken . | . . . . . Unknown Exits Taken 4 | 1 1 1 1 . Scrap Searched . | . . . . . Spaces Dug . | . . . . . Terrain Destroyed 53 | . 28 . . 25 Melee . | . . . . . Projectile . | . . . . . AOE 53 | . 28 . . 25 Terrain Rammed . | . . . . . Walls Destroyed . | . . . . . Machines Disabled . | . . . . . Actions | -11 -10 -10 -10 -9 --------- Run | Yrd Mat Min Exi Min Total 646 | 53 117 89 323 64 Wait . | . . . . . Move 597 | 42 101 86 317 51 Hop . | . . . . . Pick Up 18 | 7 6 2 3 . Fast Attach . | . . . . . Attach 9 | 4 2 1 . 2 Detach 1 | . . . . 1 Swap 1 | . 1 . . . Drop 6 | . . . 3 3 Fire 12 | . 7 . . 5 Melee 2 | . . . . 2 Ram . | . . . . . Kick . | . . . . . Crush . | . . . . . Escape Stasis . | . . . . . Rewire . | . . . . . Trap . | . . . . . Miscellaneous . | . . . . . Route ------- -11/Scrapyard -10/Materials -10/Mines -10/Exiles (discovered 2 exits: [*Min x2]) -9/Mines History --------- Turn | Location | Event 5 | -11/Scrapyard | Discovered new exit (range 16) 59 | -11/Scrapyard | Entered Materials 192 | -10/Materials | Discovered new exit (range 12) 194 | -10/Materials | Met 8R-AWN 211 | -10/Materials | Entered Mines 213 | -10/Mines | Followed 8R-AWN into the Mines 313 | -10/Mines | Discovered new exit (range 5) 317 | -10/Mines | Build established: Mutant 318 | -10/Mines | Entered Exiles 338 | -10/Exiles | Discovered new exit (range 15) 348 | -10/Exiles | Welcomed by 8R-AWN 369 | -10/Exiles | Met EX-HEX 412 | -10/Exiles | Met EX-BIN 426 | -10/Exiles | Aligned with FarCom system 428 | -10/Exiles | Given EX-Vault access code 459 | -10/Exiles | Opened EX-Vault 470 | -10/Exiles | Found PSU Rigger 478 | -10/Exiles | Found 0b10 Alert Chip 482 | -10/Exiles | Found Cloak of Protection 507 | -10/Exiles | Warned to stay clear of 0b10 Research branches 544 | -10/Exiles | Met EX-DEC 588 | -10/Exiles | Visited The Gauntlet 646 | -10/Exiles | Learned location of Zion (-7) 689 | -10/Exiles | Discovered new exit (range 14) 703 | -10/Exiles | Left Exiles lab with Cloak of Protection 703 | -10/Exiles | Entered Mines 704 | -9/Mines | Assembled infested the area 717 | -9/Mines | Met a Derelict bent on vengeance 756 | -9/Mines | Core integrity fell below 50% 758 | -9/Mines | Core integrity fell below 20% 759 | -9/Mines | Destroyed by D-53 Grenadier with Mini Grenade Launcher Last Messages --------------- 00727_ Knocked back. 00727_ as-66987 destroyed. 00727_ as-29422 destroyed. 00727_ as-00745 destroyed. 00727_ as-72614 destroyed. 00727_ as-93757 destroyed. 00729_ as-34552 destroyed. 00729_ Aluminum Leg destroyed. 00729_ Grenade Launcher destroyed. 00729_ Assault Rifle destroyed. 00731_ as-99874 destroyed. 00731_ as-24329 destroyed. 00735_ K-01 Serf collects debris. 00735_ as-20634 destroyed. 00746_ Knocked back. 00752_ Weight Redist. System destroyed. 00752_ System corrupted by crushing effect (+2). 00753_ Dropped Lgt. Assault Rifle. 00754_ Dropped Sml. Storage Unit. 00755_ as-57220 destroyed. Map ----- +----------------------------------------------------+ | ?????# ##???## ##????????????????????????? | | ??#### #### ##???????????????????????? | | ?## ##??????????????????????? | | ?# #?? #??????????????????? | | ?# #?% ???????????????????? | | ?## # #????????????????????? | | ??### #????????????????????? | | ????## ###????????????????????? | | ?????### ####???????????????????? | | ???????# " #???????????????????? | | ???????### # #??????????????????? | | ?????### #?????????????????? | | ????## ######## ????????????????? | | ????# #?????????? # #??????????????? | | ????# #?????????? #?????????????? | | ????# #????????? ##????????????? | | ????# ## ##???????? #????????????? | | ???## ?# ###????? #????????????? | | ??## #?# ##???# #?????????????? | | ??# #?## #### #?????????????? | | ??# #?#dd #??????????????? | | ??# ## #???????????????? | | ??# #???????????????? | | ??## #???????????????? | | ???#### #???????????????? | | ??????## @ #??????????????? | | ???????# # #??????????????? | | ???????# ### #??????????????? | | ??????## ??## ##??????????????? | | ??????# [ # #?????#???????????????? | | ??????# %[ ##????????????????????? | | ??????# ! #????????????????????? | | ??????# #????????????????????? | | ??????##### #????????????????????? | | ??????????### #????????????????????? | | ????????????## ##????????????????????? | | ?????????????########?????????????????????? | | ??????????????????????????????????????????? | | ??????????????????????????????????????????? | | | | | | | | | | | | | | | | | | | | | | | +----------------------------------------------------+ Best States ------------- Heat Dissipation 25 Energy Generation 10 Energy Capacity 250 Matter Stores 300 Matter Capacity 300 Sight Range 16 Terrain Scan Density 10 Additional Mass Support 6 Evasion (%) 55 Item Schematics ----------------- None Robot Schematics ------------------ None Fabricated ------------ Nothing Repaired ---------- Nothing Studied --------- None Alien Tech Used ----------------- None Achievements -------------- Follow The Leader Sixth Sense There's More Where That Came From Challenges ------------ None Game ------ Seed SuperchargedZioniteShield Manual? 0 Play Time 00:12:34 Cumulative 36.8 hours Start 2025.11.09 @ 17:19:57 End 2025.11.12 @ 15:10:46 Sessions 3 Manual Loads 0 Difficulty Rogue Special Mode None Game No. 68 Rogue 68 Adventurer 0 Explorer 0 Win Type - Total 0 Types 0/0/0/0/0/0/0/0/0/0 Lore% 13 Gallery% 29 Achievement% 14 Wizard Run 0 Options --------- Layout 1 ASCII 0 Keyboard 0 Movement Mouse Keybinds 0 Fullscreen 2 Font 24/Smallcaps Map View 50x35 Zoom Use 0% Tactical HUD 1 Map Filters NONE Filters NONE Steam 1 RUN: 018725d4-9ce3-488f-9bf8-1db74304609f